fUSD/lending_fUSD_20240114
["ID","MTS","AMOUNT","RATE_DAILY","PERIOD"]
[311586872,1705254688459,-883.7,0.00031232,2]
[311586873,1705254688468,-500.0,0.00031232,2]
[311586874,1705254688477,-854.99,0.00031232,2]
[311586875,1705254688486,-1889.13,0.00031232,2]
[311586876,1705254688496,-500.0,0.00031232,2]
[311586877,1705254688506,-500.0,0.00031232,2]
[311586878,1705254688515,-500.0,0.00031232,2]
[311586879,1705254688524,-500.0,0.00031232,2]
[311586880,1705254688533,-1000.0,0.00031232,2]
[311586881,1705254688543,-500.0,0.00031232,2]
[311586882,1705254688553,-500.0,0.00031232,2]
[311586883,1705254688562,-598.47,0.00031232,2]
[311586884,1705254688571,-500.0,0.00031232,2]
[311586885,1705254688581,-447.26578405,0.00031232,2]
[311586886,1705254688589,-684.19,0.00031232,2]
[311586887,1705254688599,-500.0,0.00031232,2]
[311586888,1705254688608,-1015.86,0.00031232,2]
[311586889,1705254688618,-1532.26,0.00031232,2]
[311586890,1705254688628,-543.96,0.00031232,2]
[311586891,1705254688639,-500.0,0.00031232,2]
[311586892,1705254688648,-873.09,0.00031232,2]
[311586893,1705254688657,-728.21,0.00031232,2]
[311586894,1705254688667,-544.01,0.00031232,2]
[311586895,1705254688676,-500.0,0.00031232,2]
[311586896,1705254688685,-632.51,0.00031232,2]
[311586897,1705254688694,-847.21,0.00031232,2]
[311586898,1705254688704,-537.89,0.00031232,2]
[311586899,1705254688714,-500.0,0.00031232,2]
[311586900,1705254688723,-500.0,0.00031232,2]
[311586901,1705254688732,-300.0,0.00031232,2]
[311586902,1705254688741,-500.0,0.00031232,2]
[311586903,1705254688751,-500.0,0.00031232,2]
[311586904,1705254688760,-811.66,0.00031232,2]
[311586905,1705254688770,-500.0,0.00031232,2]
[311586906,1705254688780,-500.0,0.00031232,2]
[311586907,1705254688789,-577.79,0.00031232,2]
[311586908,1705254688799,-1041.79,0.00031232,2]
[311586909,1705254688808,-569.19,0.00031232,2]
[311586910,1705254688818,-500.0,0.00031232,2]
[311586911,1705254688831,-500.0,0.00031232,2]
[311586912,1705254688840,-799.01,0.00031232,2]
[311586913,1705254688850,-500.0,0.00031232,2]
[311586914,1705254688859,-1000.0,0.00031232,2]
[311586915,1705254688868,-500.0,0.00031232,2]
[311586916,1705254688877,-1129.85,0.00031232,2]
[311586917,1705254688886,-500.0,0.00031232,2]
[311586918,1705254688896,-623.05,0.00031232,2]
[311586919,1705254688905,-500.0,0.00031232,2]
[311586920,1705254688914,-500.0,0.00031232,2]
[311586921,1705254688923,-500.0,0.00031232,2]
[311586922,1705254688933,-500.0,0.00031232,2]
[311586923,1705254688942,-500.0,0.00031232,2]
[311586924,1705254688951,-500.0,0.00031232,2]
[311586925,1705254688960,-500.0,0.00031232,2]
[311586926,1705254688970,-1412.28,0.00031232,2]
[311586927,1705254688980,-500.0,0.00031232,2]
[311586928,1705254688991,-500.0,0.00031232,2]
[311586929,1705254689001,-500.0,0.00031232,2]
[311586930,1705254689011,-500.0,0.00031232,2]
[311586931,1705254689021,-427.70559851,0.00031232,2]
[311586932,1705254689031,-438.71715294,0.00031232,2]
[311586933,1705254689041,-500.0,0.00031232,2]
[311586934,1705254689052,-500.0,0.00031232,2]
[311586935,1705254689064,-500.0,0.00031232,2]
[311586936,1705254689073,-156.08734503,0.00031232,2]
[311586937,1705254689083,-805.08,0.00031232,2]
[311586938,1705254689094,-585.49,0.00031232,2]
[311586939,1705254689104,-500.0,0.00031232,2]
[311586940,1705254689114,-500.0,0.00031232,2]
[311586941,1705254689125,-500.0,0.00031232,2]
[311586942,1705254689137,-500.0,0.00031232,2]
[311586943,1705254689147,-528.91,0.00031232,2]
[311586944,1705254689157,-620.94,0.00031232,2]
[311586945,1705254689166,-623.21,0.00031232,2]
[311586946,1705254689176,-1190.47,0.00031232,2]
[311586947,1705254689185,-500.0,0.00031232,2]
[311586948,1705254689196,-500.0,0.00031232,2]
[311586949,1705254689205,-500.0,0.00031232,2]
[311586950,1705254689215,-1096.0,0.00031232,2]
[311586951,1705254689225,-500.0,0.00031232,2]
[311586952,1705254689234,-500.0,0.00031232,2]
[311586953,1705254689244,-572.26,0.00031232,2]
[311586954,1705254689254,-609.54,0.00031232,2]
[311586955,1705254689263,-500.0,0.00031232,2]
[311586956,1705254689274,-1186.28,0.00031232,2]
[311586957,1705254689285,-669.88,0.00031232,2]
[311586958,1705254689295,-1818.34,0.00031232,2]
[311586959,1705254689305,-685.95,0.00031232,2]
[311586960,1705254689315,-211.94142445,0.00031232,2]
[311586961,1705254689325,-501.47,0.00031232,2]
[311586962,1705254689335,-518.54,0.00031232,2]
[311586963,1705254689346,-593.21,0.00031232,2]
[311586964,1705254689355,-529.69,0.00031232,2]
[311586965,1705254689365,-500.0,0.00031232,2]
[311586966,1705254689374,-500.0,0.00031232,2]
[311586967,1705254689386,-1016.0,0.00031232,2]
[311586968,1705254689396,-500.0,0.00031232,2]
[311586969,1705254689405,-1621.92,0.00031232,2]
[311586970,1705254689416,-722.69,0.00031232,2]
[311586971,1705254689425,-903.91,0.00031232,2]
[311586972,1705254689435,-500.0,0.00031232,2]
[311586973,1705254689444,-500.0,0.00031232,2]
[311586974,1705254689454,-991.32,0.00031232,2]
[311586975,1705254689464,-500.0,0.00031232,2]
[311586976,1705254689474,-500.0,0.00031232,2]
[311586977,1705254689483,-500.0,0.00031232,2]
[311586978,1705254689493,-500.0,0.00031232,2]
[311586979,1705254689503,-525.84,0.00031232,2]
[311586980,1705254689513,-710.74,0.00031232,2]
[311586981,1705254689523,-704.61,0.00031232,2]
[311586982,1705254689533,-500.0,0.00031232,2]
[311586983,1705254689543,-500.0,0.00031232,2]
[311586984,1705254689553,-709.82,0.00031232,2]
[311586985,1705254689563,-500.0,0.00031232,2]
[311586986,1705254689572,-500.0,0.00031232,2]
[311586987,1705254689582,-1223.32,0.00031232,2]
[311586988,1705254689592,-710.54,0.00031232,2]
[311586989,1705254689602,-1094.22,0.00031232,2]
[311586990,1705254689612,-500.0,0.00031232,2]
[311586991,1705254689621,-793.79,0.00031232,2]
[311586992,1705254689633,-507.00855617,0.00031232,2]
[311586993,1705254689642,-500.0,0.00031232,2]
[311586994,1705254689651,-589.24,0.00031232,2]
[311586995,1705254689661,-500.0,0.00031232,2]
[311586996,1705254689672,-1336.34,0.00031232,2]
[311586997,1705254689682,-705.78,0.00031232,2]
[311586998,1705254689693,-500.0,0.00031232,2]
[311586999,1705254689703,-1278.82,0.00031232,2]
[311587000,1705254689713,-872.06,0.00031232,2]
[311587001,1705254689723,-1158.19,0.00031232,2]
[311587002,1705254689733,-693.44,0.00031232,2]
[311587003,1705254689742,-614.72,0.00031232,2]
[311587004,1705254689752,-500.0,0.00031232,2]
[311587005,1705254689762,-1275.99,0.00031232,2]
[311587006,1705254689772,-630.84,0.00031232,2]
[311587007,1705254689782,-658.22,0.00031232,2]
[311587008,1705254689792,-530.81,0.00031232,2]
[311587009,1705254689801,-560.34,0.00031232,2]
[311587010,1705254689811,-500.0,0.00031232,2]
[311587011,1705254689821,-500.0,0.00031232,2]
[311587012,1705254689831,-510.82,0.00031232,2]
[311587013,1705254689841,-981.13,0.00031232,2]
[311587014,1705254689852,-500.0,0.00031232,2]
[311587015,1705254689862,-772.78,0.00031232,2]
[311587016,1705254689872,-500.0,0.00031232,2]
[311587017,1705254689883,-500.0,0.00031232,2]
[311587018,1705254689893,-500.0,0.00031232,2]
[311587019,1705254689902,-500.0,0.00031232,2]
[311587020,1705254689913,-500.0,0.00031232,2]
[311587021,1705254689923,-500.0,0.00031232,2]
[311587022,1705254689933,-848.01,0.00031232,2]
[311587023,1705254689943,-1459.83,0.00031232,2]
[311587024,1705254689954,-623.93,0.00031232,2]
[311587025,1705254689964,-500.0,0.00031232,2]
[311587026,1705254689974,-701.62,0.00031232,2]
[311587027,1705254689983,-945.09,0.00031232,2]
[311587028,1705254689993,-500.0,0.00031232,2]
[311587029,1705254690003,-500.0,0.00031232,2]
[311587030,1705254690013,-500.0,0.00031232,2]
[311587031,1705254690023,-500.0,0.00031232,2]
[311587032,1705254690034,-1076.56,0.00031232,2]
[311587033,1705254690044,-1062.5,0.00031232,2]
[311587034,1705254690054,-500.0,0.00031232,2]
[311587035,1705254690063,-1257.99,0.00031232,2]
[311587036,1705254690073,-500.0,0.00031232,2]
[311587037,1705254690082,-500.0,0.00031232,2]
[311587038,1705254690092,-500.0,0.00031232,2]
[311587039,1705254690102,-505.85,0.00031232,2]
[311587040,1705254690111,-911.18,0.00031232,2]
[311587041,1705254690122,-259.55138602,0.00031232,2]
[311587042,1705254690133,-1141.48,0.00031232,2]
[311587043,1705254690142,-578.73,0.00031232,2]
[311587044,1705254690152,-876.48,0.00031232,2]
[311587045,1705254690162,-500.0,0.00031232,2]
[311587046,1705254690173,-500.0,0.00031232,2]
[311587047,1705254690183,-1408.36,0.00031232,2]
[311587048,1705254690198,-500.0,0.00031232,2]
[311587049,1705254690214,-500.0,0.00031232,2]
[311587050,1705254690228,-652.92,0.00031232,2]
[311587051,1705254690243,-621.13598659,0.00031232,2]
[311587052,1705254690255,-700.49,0.00031232,2]
[311587053,1705254690268,-535.93,0.00031232,2]
[311587054,1705254690281,-1369.55,0.00031232,2]
[311587055,1705254690296,-500.0,0.00031232,2]
[311587056,1705254690310,-655.51,0.00031232,2]
[311587057,1705254690324,-1152.05,0.00031232,2]
[311587058,1705254690338,-1693.97,0.00031232,2]
[311587059,1705254690349,-500.0,0.00031232,2]
[311587060,1705254690362,-576.41,0.00031232,2]
[311587061,1705254690376,-500.0,0.00031232,2]
[311587062,1705254690388,-517.46582486,0.00031232,2]
[311587063,1705254690402,-674.01,0.00031232,2]
[311587064,1705254690416,-666.56,0.00031232,2]
[311587065,1705254690431,-1489.68,0.00031232,2]
[311587066,1705254690443,-500.0,0.00031232,2]
[311587067,1705254690454,-500.0,0.00031232,2]
[311587068,1705254690470,-1084.26,0.00031232,2]
[311587069,1705254690484,-500.0,0.00031232,2]
[311587070,1705254690498,-500.0,0.00031232,2]
[311587071,1705254690511,-500.0,0.00031232,2]
[311587072,1705254690523,-509.11741908,0.00031232,2]
[311587073,1705254690537,-507.6,0.00031232,2]
[311587074,1705254690551,-672.02,0.00031232,2]
[311587075,1705254690564,-500.0,0.00031232,2]
[311587076,1705254690578,-500.0,0.00031232,2]
[311587077,1705254690593,-500.0,0.00031232,2]
[311587078,1705254690608,-500.0,0.00031232,2]
[311587079,1705254690620,-500.0,0.00031232,2]
[311587080,1705254690631,-500.0,0.00031232,2]
[311587081,1705254690643,-1102.17,0.00031232,2]
[311587082,1705254690655,-1616.4,0.00031232,2]
[311587083,1705254690669,-816.43,0.00031232,2]
[311587084,1705254690680,-500.0,0.00031232,2]
[311587085,1705254690696,-500.0,0.00031232,2]
[311587086,1705254690708,-500.0,0.00031232,2]
[311587087,1705254690719,-500.0,0.00031232,2]
[311587088,1705254690730,-807.28,0.00031232,2]
[311587089,1705254690745,-719.58,0.00031232,2]
[311587090,1705254690757,-500.0,0.00031232,2]
[311587091,1705254690770,-500.0,0.00031232,2]
[311587092,1705254690783,-815.19,0.00031232,2]
[311587093,1705254690795,-716.18,0.00031232,2]
[311587094,1705254690808,-675.06,0.00031232,2]
[311587095,1705254690820,-683.69,0.00031232,2]
[311587096,1705254690832,-500.0,0.00031232,2]
[311587097,1705254690845,-500.0,0.00031232,2]
[311587098,1705254690858,-623.19,0.00031232,2]
[311587099,1705254690871,-500.0,0.00031232,2]
[311587100,1705254690886,-500.0,0.00031232,2]
[311587101,1705254690899,-1243.95,0.00031232,2]
[311587102,1705254690912,-1006.49,0.00031232,2]
[311587103,1705254690925,-1113.17,0.00031232,2]
[311587104,1705254690937,-500.0,0.00031232,2]
[311587105,1705254690950,-500.0,0.00031232,2]
[311587106,1705254690963,-510.34,0.00031232,2]
[311587107,1705254690976,-503.27682741,0.00031232,2]
[311587108,1705254690990,-674.12,0.00031232,2]
[311587109,1705254691002,-500.0,0.00031232,2]
[311587110,1705254691014,-596.91,0.00031232,2]
[311587111,1705254691026,-941.41,0.00031232,2]
[311587112,1705254691039,-1779.19,0.00031232,2]
[311587113,1705254691053,-500.0,0.00031232,2]
[311587114,1705254691065,-536.5,0.00031232,2]
[311587115,1705254691078,-1166.57,0.00031232,2]
[311587116,1705254691091,-500.0,0.00031232,2]
[311587117,1705254691103,-500.0,0.00031232,2]
[311587118,1705254691116,-500.0,0.00031232,2]
[311587119,1705254691129,-500.0,0.00031232,2]
[311587120,1705254691143,-886.77,0.00031232,2]
[311587121,1705254691156,-500.0,0.00031232,2]
[311587122,1705254691169,-1076.44,0.00031232,2]
[311587123,1705254691182,-500.0,0.00031232,2]
[311587124,1705254691195,-644.5,0.00031232,2]
[311587125,1705254691207,-806.69,0.00031232,2]
[311587126,1705254691218,-500.0,0.00031232,2]
[311587127,1705254691231,-1000.0,0.00031232,2]
[311587128,1705254691243,-500.0,0.00031232,2]
[311587129,1705254691255,-846.39,0.00031232,2]
[311587130,1705254691268,-500.0,0.00031232,2]
[311587131,1705254691281,-500.0,0.00031232,2]
[311587132,1705254691293,-654.91,0.00031232,2]
[311587133,1705254691305,-500.0,0.00031232,2]
[311587134,1705254691318,-500.0,0.00031232,2]
[311587135,1705254691331,-631.36,0.00031232,2]
[311587136,1705254691344,-505.5,0.00031232,2]
[311587137,1705254691356,-1250.68,0.00031232,2]
[311587138,1705254691369,-1405.3,0.00031232,2]
[311587139,1705254691381,-500.0,0.00031232,2]
[311587140,1705254691393,-614.66,0.00031232,2]
[311587141,1705254691405,-500.0,0.00031232,2]
[311587142,1705254691417,-500.0,0.00031232,2]
[311587143,1705254691430,-500.0,0.00031232,2]
[311587144,1705254691442,-500.0,0.00031232,2]
[311587145,1705254691455,-500.0,0.00031232,2]
[311587146,1705254691468,-500.38,0.00031232,2]
[311587147,1705254691481,-500.0,0.00031232,2]
[311587148,1705254691495,-500.0,0.00031232,2]
[311587149,1705254691508,-518.75381029,0.00031232,2]
[311587150,1705254691521,-736.6,0.00031232,2]
[311587151,1705254691533,-500.0,0.00031232,2]
[311587152,1705254691545,-500.0,0.00031232,2]
[311587153,1705254691557,-698.58,0.00031232,2]
[311587154,1705254691569,-1600.55,0.00031232,2]
[311587155,1705254691582,-500.0,0.00031232,2]
[311587156,1705254691594,-500.0,0.00031232,2]
[311587157,1705254691606,-1355.09,0.00031232,2]
[311587158,1705254691619,-783.01,0.00031232,2]
[311587159,1705254691633,-500.0,0.00031232,2]
[311587160,1705254691645,-694.09,0.00031232,2]
[311587161,1705254691658,-500.0,0.00031232,2]
[311587162,1705254691670,-698.64,0.00031232,2]
[311587163,1705254691681,-500.0,0.00031232,2]
[311587164,1705254691693,-500.0,0.00031232,2]
[311587165,1705254691706,-500.0,0.00031232,2]
[311587166,1705254691719,-500.0,0.00031232,2]
[311587167,1705254691731,-500.0,0.00031232,2]
[311587168,1705254691743,-893.97,0.00031232,2]
[311587169,1705254691755,-500.0,0.00031232,2]
[311587170,1705254691767,-802.7,0.00031232,2]
[311587171,1705254691780,-474.82682169,0.00031232,2]
[311587172,1705254691792,-877.73,0.00031232,2]
[311587173,1705254691803,-500.0,0.00031232,2]
[311587174,1705254691815,-562.74,0.00031232,2]
[311587175,1705254691838,-643.5,0.00031232,2]
[311587176,1705254691850,-843.19,0.00031232,2]
[311587177,1705254691861,-959.0,0.00031232,2]
[311587178,1705254691872,-500.0,0.00031232,2]
[311587179,1705254691884,-500.0,0.00031232,2]
[311587180,1705254691896,-942.69,0.00031232,2]
[311587181,1705254691908,-688.19,0.00031232,2]
[311587182,1705254691920,-500.0,0.00031232,2]
[311587183,1705254691931,-599.8,0.00031232,2]
[311587184,1705254691943,-683.36,0.00031232,2]
[311587185,1705254691954,-1340.22,0.00031232,2]
[311587186,1705254691966,-1310.4,0.00031232,2]
[311587187,1705254691978,-500.0,0.00031232,2]
[311587188,1705254691989,-2865.82,0.00031232,2]
[311587189,1705254692000,-500.0,0.00031232,2]
[311587190,1705254692012,-500.0,0.00031232,2]
[311587191,1705254692024,-500.0,0.00031232,2]
[311587192,1705254692036,-500.0,0.00031232,2]
[311587193,1705254692047,-685.16,0.00031232,2]
[311587194,1705254692058,-500.0,0.00031232,2]
[311587195,1705254692069,-540.62,0.00031232,2]
[311587196,1705254692080,-500.0,0.00031232,2]
[311587197,1705254692091,-526.27,0.00031232,2]
[311587198,1705254692103,-500.0,0.00031232,2]
[311587199,1705254692114,-2183.89,0.00031232,2]
[311587200,1705254692125,-2162.44,0.00031232,2]
[311587201,1705254692136,-500.0,0.00031232,2]
[311587202,1705254692147,-555.95,0.00031232,2]
[311587203,1705254692158,-500.0,0.00031232,2]
[311587204,1705254692170,-500.0,0.00031232,2]
[311587205,1705254692181,-860.3,0.00031232,2]
[311587206,1705254692193,-500.0,0.00031232,2]
[311587207,1705254692204,-500.0,0.00031232,2]
[311587208,1705254692216,-500.0,0.00031232,2]
[311587209,1705254692227,-500.0,0.00031232,2]
[311587210,1705254692238,-500.0,0.00031232,2]
[311587211,1705254692249,-500.0,0.00031232,2]
[311587212,1705254692260,-500.0,0.00031232,2]
[311587213,1705254692271,-250.0,0.00031232,2]
[311587214,1705254692283,-500.0,0.00031232,2]
[311587215,1705254692295,-689.79,0.00031232,2]
[311587216,1705254692306,-490.33734773,0.00031232,2]
[311587217,1705254692318,-4135.39,0.00031232,2]
[311587218,1705254692331,-500.0,0.00031232,2]
[311587219,1705254692342,-500.0,0.00031232,2]
[311587220,1705254692360,-500.0,0.00031232,2]
[311587221,1705254692374,-500.0,0.00031232,2]
[311587222,1705254692389,-625.54,0.00031232,2]
[311587223,1705254692402,-571.36,0.00031232,2]
[311587224,1705254692415,-500.0,0.00031232,2]
[311587225,1705254692428,-500.0,0.00031232,2]
[311587226,1705254692442,-841.27,0.00031232,2]
[311587227,1705254692474,-952.77,0.00031232,2]
[311587228,1705254692486,-500.0,0.00031232,2]
[311587229,1705254692497,-500.0,0.00031232,2]
[311587230,1705254692510,-413.77174692,0.00031232,2]
[311587231,1705254692523,-760.3,0.00031232,2]
[311587232,1705254692536,-851.47,0.00031232,2]
[311587233,1705254692549,-500.0,0.00031232,2]
[311587234,1705254692563,-722.99,0.00031232,2]
[311587235,1705254692575,-934.33,0.00031232,2]
[311587236,1705254692588,-2085.35,0.00031232,2]
[311587237,1705254692601,-500.0,0.00031232,2]
[311587238,1705254692614,-528.2,0.00031232,2]
[311587239,1705254692626,-500.0,0.00031232,2]
[311587240,1705254692639,-500.0,0.00031232,2]
[311587241,1705254692651,-500.0,0.00031232,2]
[311587242,1705254692663,-500.0,0.00031232,2]
[311587243,1705254692675,-1072.63,0.00031232,2]
[311587244,1705254692686,-500.0,0.00031232,2]
[311587245,1705254692699,-500.0,0.00031232,2]
[311587246,1705254692710,-500.0,0.00031232,2]
[311587247,1705254692722,-500.0,0.00031232,2]
[311587248,1705254692734,-1143.88,0.00031232,2]
[311587249,1705254692746,-509.62287071,0.00031232,2]
[311587250,1705254692758,-866.3,0.00031232,2]
[311587251,1705254692770,-687.83,0.00031232,2]
[311587252,1705254692783,-1451.85,0.00031232,2]
[311587253,1705254692795,-514.73344953,0.00031232,2]
[311587254,1705254692808,-1260.44,0.00031232,2]
[311587255,1705254692820,-1285.21,0.00031232,2]
[311587256,1705254692831,-601.33,0.00031232,2]
[311587257,1705254692843,-686.68,0.00031232,2]
[311587258,1705254692855,-500.0,0.00031232,2]
[311587259,1705254692867,-837.43,0.00031232,2]
[311587260,1705254692879,-500.0,0.00031232,2]
[311587261,1705254692892,-3602.0,0.00031232,2]
[311587262,1705254692903,-1091.0,0.00031232,2]
[311587263,1705254692916,-938.24,0.00031232,2]
[311587264,1705254692928,-721.53,0.00031232,2]
[311587265,1705254692939,-500.0,0.00031232,2]
[311587266,1705254692952,-4612.85,0.00031232,2]
[311587267,1705254692965,-1262.49,0.00031232,2]
[311587268,1705254692977,-687.1,0.00031232,2]
[311587269,1705254692990,-500.0,0.00031232,2]
[311587270,1705254693002,-1568.3,0.00031232,2]
[311587271,1705254693014,-945.26,0.00031232,2]
[311587272,1705254693026,-500.0,0.00031232,2]
[311587273,1705254693039,-500.0,0.00031232,2]
[311587274,1705254693052,-1939.61,0.00031232,2]
[311587275,1705254693069,-921.19,0.00031232,2]
[311587276,1705254693081,-2489.84,0.00031232,2]
[311587277,1705254693095,-500.0,0.00031232,2]
[311587278,1705254693107,-1872.87,0.00031232,2]
[311587279,1705254693119,-500.0,0.00031232,2]
[311587280,1705254693131,-500.0,0.00031232,2]
[311587281,1705254693145,-588.83,0.00031232,2]
[311587282,1705254693157,-395.3793051,0.00031232,2]
[311587283,1705254693169,-738.3,0.00031232,2]
[311587284,1705254693182,-882.91,0.00031232,2]
[311587285,1705254693194,-1363.03,0.00031232,2]
[311587286,1705254693207,-540.32,0.00031232,2]
[311587287,1705254693219,-500.0,0.00031232,2]
[311587288,1705254693231,-500.0,0.00031232,2]
[311587289,1705254693244,-1915.63,0.00031232,2]
[311587290,1705254693256,-1446.64,0.00031232,2]
[311587291,1705254693268,-670.56,0.00031232,2]
[311587292,1705254693279,-500.0,0.00031232,2]
[311587293,1705254693291,-1006.82,0.00031232,2]
[311587294,1705254693303,-644.61,0.00031232,2]
[311587295,1705254693315,-693.93,0.00031232,2]
[311587296,1705254693328,-227.62147413,0.00031232,2]
[311587297,1705254693340,-863.23,0.00031232,2]
[311587298,1705254693352,-1345.3,0.00031232,2]
[311587299,1705254693364,-979.22,0.00031232,2]
[311587300,1705254693375,-528.68964426,0.00031232,2]
[311587301,1705254693388,-1093.2,0.00031232,2]
[311587302,1705254693400,-226.30395116,0.00031232,2]
[311587303,1705254693412,-1230.76,0.00031232,2]
[311587304,1705254693423,-582.59,0.00031232,2]
[311587305,1705254693435,-500.0,0.00031232,2]
[311587306,1705254693448,-1556.76,0.00031232,2]
[311587307,1705254693460,-500.0,0.00031232,2]
[311587308,1705254693473,-1047.0,0.00031232,2]
[311587309,1705254693485,-7358.68,0.00031232,2]
[311587310,1705254693497,-500.0,0.00031232,2]
[311587311,1705254693510,-1416.84,0.00031232,2]
[311587312,1705254693522,-500.0,0.00031232,2]
[311587313,1705254693535,-500.0,0.00031232,2]
[311587314,1705254693547,-817.18,0.00031232,2]
[311587315,1705254693560,-905.22,0.00031232,2]
[311587316,1705254693572,-500.0,0.00031232,2]
[311587317,1705254693585,-2225.84,0.00031232,2]
[311587318,1705254693598,-1065.28,0.00031232,2]
[311587319,1705254693609,-1555.59,0.00031232,2]
[311587320,1705254693622,-500.0,0.00031232,2]
[311587321,1705254693635,-959.87,0.00031232,2]
[311587322,1705254693647,-500.0,0.00031232,2]
[311587323,1705254693660,-643.05,0.00031232,2]
[311587324,1705254693673,-1807.93,0.00031232,2]
[311587325,1705254693684,-2257.62,0.00031232,2]
[311587326,1705254693696,-500.0,0.00031232,2]
[311587327,1705254693708,-1129.54,0.00031232,2]
[311587328,1705254693721,-959.3,0.00031232,2]
[311587329,1705254693733,-3252.88,0.00031232,2]
[311587330,1705254693746,-502.28,0.00031232,2]
[311587331,1705254693763,-1388.45,0.00031232,2]
[311587332,1705254693778,-500.0,0.00031232,2]
[311587333,1705254693792,-2793.81,0.00031232,2]
[311587334,1705254693805,-1017.91,0.00031232,2]
[311587335,1705254693819,-874.99,0.00031232,2]
[311587336,1705254693834,-500.0,0.00031232,2]
[311587337,1705254694792,-500.0,0.00031232,2]
[311587338,1705254694827,-915.83,0.00031232,2]
[311587339,1705254694859,-6280.95,0.00031232,2]
[311587340,1705254694889,-1952.99,0.00031232,2]
[311587341,1705254694904,-676.52,0.00031232,2]
[311587342,1705254694915,-630.37,0.00031232,2]
[311587343,1705254694926,-3111.79,0.00031232,2]
[311587344,1705254694937,-500.0,0.00031232,2]
[311587345,1705254694947,-2353.93,0.00031232,2]
[311587346,1705254694957,-500.0,0.00031232,2]
[311587347,1705254694967,-500.0,0.00031232,2]
[311587348,1705254694977,-500.0,0.00031232,2]
[311587349,1705254694987,-1027.37,0.00031232,2]
[311587350,1705254694997,-500.0,0.00031232,2]
[311587351,1705254695007,-1411.48,0.00031232,2]
[311587352,1705254695017,-500.0,0.00031232,2]
[311587353,1705254695028,-688.75,0.00031232,2]
[311587354,1705254695038,-500.0,0.00031232,2]
[311587355,1705254695049,-974.58,0.00031232,2]
[311587356,1705254695060,-500.0,0.00031232,2]
[311587357,1705254695075,-2751.81,0.00031232,2]
[311587358,1705254695086,-500.0,0.00031232,2]
[311587359,1705254695097,-500.0,0.00031232,2]
[311587360,1705254695108,-1119.46,0.00031232,2]
[311587361,1705254695118,-500.0,0.00031232,2]
[311587362,1705254695130,-4919.77,0.00031232,2]
[311587363,1705254695140,-678.6,0.00031232,2]
[311587364,1705254695151,-185.92,0.00031232,2]
[311587365,1705254695163,-2030.96,0.00031232,2]
[311587366,1705254695175,-6290.45,0.00031232,2]
[311587367,1705254695186,-500.0,0.00031232,2]
[311587368,1705254695197,-4496.01,0.00031232,2]
[311587369,1705254695208,-747.52,0.00031232,2]
[311587370,1705254695219,-500.0,0.00031232,2]
[311587371,1705254695230,-635.11,0.00031232,2]